bitfinex/quotes_BTCUSD_20240723
["timestamp","ask_amount","ask_price","bid_price","bid_amount"]
[1721760654124,0.76827201,66009.0,66008.0,0.001001]
[1721760654327,0.76827201,66009.0,66008.0,0.27176264]
[1721760654328,0.01080201,66009.0,66008.0,0.27176264]
[1721760654594,0.04675795,66022.0,66008.0,0.27176264]
[1721760654595,0.302948,66018.0,66012.0,0.0048705]
[1721760654750,0.302948,66018.0,66013.0,0.12462604]
[1721760654963,0.302948,66018.0,66012.0,0.00811255]
[1721760654964,0.01077937,66017.0,66014.0,0.12462604]
[1721760655162,0.151472,66019.0,66015.0,0.12462604]
[1721760655363,0.151472,66019.0,66016.0,0.12462604]
[1721760655582,0.151472,66019.0,66012.0,0.00811255]
[1721760655583,0.151474,66018.0,66013.0,0.151484]
[1721760655758,0.151474,66018.0,66014.0,0.1247435]
[1721760655964,0.014,66018.0,66015.0,0.1247435]
[1721760656333,0.014,66018.0,66011.0,0.302978]
[1721760656334,0.014,66018.0,66017.0,0.60784055]
[1721760656532,0.34965895,66029.0,66017.0,0.58110805]
[1721760656533,0.302909,66027.0,66017.0,0.58110805]
[1721760656778,0.14701991,66027.0,66023.0,0.151461]
[1721760656979,0.04675795,66037.0,66028.0,0.00811255]
[1721760657196,0.151445,66031.0,66028.0,0.00811255]
[1721760657602,0.151445,66031.0,66029.0,0.0756]
[1721760657750,0.151445,66031.0,66029.0,0.1369]
[1721760658553,0.151446,66030.0,66029.0,0.1369]
[1721760658801,0.30288,66033.0,66029.0,0.1369]
[1721760658802,0.151444,66031.0,66029.0,0.1369]
[1721760658995,0.302874,66034.0,66029.0,0.1369]
[1721760659106,0.44989191,66035.0,66029.0,0.1369]
[1721760659107,0.44989291,66035.0,66029.0,0.1369]
[1721760659307,0.1,66034.0,66029.0,0.1369]
[1721760659511,0.15143,66037.0,66032.0,0.15144]
[1721760659722,0.42309137,66041.0,66033.0,0.151438]
[1721760659723,0.1,66036.0,66033.0,0.151438]
[1721760659925,0.24203564,66048.0,66038.0,0.00811255]
[1721760659926,0.1,66040.0,66038.0,0.00811255]
[1721760660144,0.151423,66040.0,66038.0,0.00811255]
[1721760660349,0.22050933,66039.0,66029.0,0.14501255]
[1721760660718,0.1,66038.0,66034.0,0.00811255]
[1721760660935,0.151412,66045.0,66041.0,0.15142]
[1721760661157,0.151415,66044.0,66040.0,0.151423]
[1721760661366,0.151412,66045.0,66041.0,0.15142]
[1721760661629,0.3979155,66054.0,66042.0,0.15281255]
[1721760661630,0.302786,66054.0,66042.0,0.15281255]
[1721760661826,0.151389,66055.0,66051.0,0.151397]
[1721760662071,0.151389,66055.0,66048.0,0.00811255]
[1721760662072,0.14701991,66055.0,66048.0,0.00811255]
[1721760662279,0.302752,66061.0,66055.0,0.00811255]
[1721760662478,0.302736,66064.0,66056.0,0.00811255]
[1721760662479,0.151377,66060.0,66056.0,0.00811255]
[1721760662686,0.302747,66062.0,66056.0,0.00811255]
[1721760662687,0.302754,66061.0,66056.0,0.00811255]
[1721760662889,0.151384,66057.0,66056.0,0.00324205]
[1721760663092,0.454152,66057.0,66056.0,0.00324205]
[1721760663520,0.454152,66057.0,66051.0,0.1471]
[1721760663521,0.756977,66052.0,66051.0,0.1471]
[1721760663719,0.454207,66049.0,66048.0,0.002]
[1721760663927,0.756912,66049.0,66048.0,0.002]
[1721760664372,0.151411,66045.0,66044.0,0.1431]
[1721760664778,0.83054642,66045.0,66044.0,0.1431]
[1721760664985,0.30284,66042.0,66037.0,0.14981255]
[1721760665197,0.07348942,66045.0,66039.0,0.00811255]
[1721760665198,0.22050933,66045.0,66039.0,0.00811255]
[1721760665430,0.151423,66040.0,66039.0,0.00811255]
[1721760665842,0.1626391,66040.0,66039.0,0.00811255]
[1721760666045,0.0112161,66040.0,66039.0,0.15953755]
[1721760666454,0.151415,66044.0,66043.0,0.00811255]
[1721760666657,0.302828,66044.0,66039.0,0.00911255]
[1721760666829,0.454269,66040.0,66039.0,0.001]
[1721760667128,0.14701991,66043.0,66037.0,0.14494205]
[1721760667129,0.454282,66038.0,66037.0,0.14981255]
[1721760667465,0.757137,66038.0,66037.0,0.14981255]
[1721760667755,0.454282,66038.0,66037.0,0.14981255]
[1721760667974,0.454282,66038.0,66037.0,0.1417]
[1721760667975,0.4654981,66038.0,66037.0,0.1417]
[1721760668229,0.4654981,66038.0,66037.0,0.0796]
[1721760668960,0.454317,66033.0,66032.0,0.1387]
[1721760669157,0.151439,66033.0,66032.0,0.1387]
[1721760669362,0.76837111,66033.0,66032.0,0.1387]
[1721760670419,0.46549311,66033.0,66032.0,0.1387]
[1721760670637,0.01117611,66033.0,66032.0,0.1387]
[1721760670840,0.46549311,66033.0,66032.0,0.1387]
[1721760671075,0.757195,66033.0,66032.0,0.1387]
[1721760671247,0.757195,66033.0,66032.0,0.011]
[1721760671248,1.05727847,66033.0,66032.0,0.011]
[1721760671398,1.36015647,66033.0,66032.0,0.011]
[1721760671609,1.66303447,66033.0,66032.0,0.011]
[1721760671820,2.35217512,66033.0,66032.0,0.011]
[1721760672043,2.35217512,66033.0,66032.0,0.009]
[1721760672467,0.757322,66022.0,66013.0,0.07111255]
[1721760672705,0.90434191,66022.0,66013.0,0.07111255]
[1721760672902,1.20727091,66022.0,66013.0,0.07111255]
[1721760673118,1.21844702,66022.0,66013.0,0.07111255]
[1721760673678,1.21844702,66022.0,66021.0,0.00118233]
[1721760675291,1.28244702,66022.0,66021.0,0.00118233]
[1721760675493,1.28244702,66022.0,66021.0,0.00018233]
[1721760675704,1.21844702,66022.0,66021.0,0.00018233]
[1721760675964,1.21844702,66022.0,66021.0,0.00118233]
[1721760676078,1.35217212,66022.0,66021.0,0.00118233]
[1721760676302,1.35217212,66022.0,66021.0,0.00218233]
[1721760676303,1.21844702,66022.0,66021.0,0.00218233]
[1721760676546,0.91551802,66022.0,66021.0,0.00218233]
[1721760676812,1.21844702,66022.0,66021.0,0.00218233]
[1721760677013,1.23244702,66022.0,66021.0,0.00218233]
[1721760677466,1.21844702,66022.0,66021.0,0.00218233]
[1721760677910,1.23244702,66022.0,66021.0,0.00218233]
[1721760679018,1.21844702,66022.0,66021.0,0.00218233]
[1721760679577,1.21844702,66022.0,66021.0,0.00018233]
[1721760679849,1.21844702,66022.0,66021.0,0.00118233]
[1721760680100,0.16264011,66022.0,66021.0,0.00118233]
[1721760680343,0.46556911,66022.0,66021.0,0.00018233]
[1721760680551,0.46556911,66022.0,66021.0,0.00118233]
[1721760680552,0.16264011,66022.0,66021.0,0.00118233]
[1721760680724,0.16264011,66022.0,66021.0,0.60569388]
[1721760680725,0.02517611,66022.0,66021.0,0.60569388]
[1721760681193,0.151448,66029.0,66028.0,0.00324205]
[1721760681409,0.30292,66024.0,66022.0,0.00811255]
[1721760681663,0.771322,66022.0,66021.0,0.00118233]
[1721760681932,0.468393,66022.0,66021.0,0.00442438]
[1721760682149,0.31384156,66023.0,66022.0,0.00811255]
[1721760682150,0.01091356,66023.0,66022.0,0.00811255]
[1721760682378,0.151462,66023.0,66022.0,0.00811255]
[1721760682584,0.454386,66023.0,66022.0,0.00811255]
[1721760682962,0.151462,66023.0,66022.0,0.00811255]
[1721760683398,0.151462,66023.0,66022.0,0.01011255]
[1721760683747,0.454386,66023.0,66022.0,0.01011255]
[1721760683951,0.454386,66023.0,66022.0,0.01411255]
[1721760684762,0.457386,66023.0,66022.0,0.01411255]
[1721760685004,1.063234,66023.0,66022.0,0.006]
[1721760685150,1.060234,66023.0,66022.0,0.006]
[1721760685524,0.757322,66022.0,66021.0,0.00018233]
[1721760686122,1.060251,66022.0,66021.0,0.00018233]
[1721760687311,0.757322,66022.0,66021.0,0.00018233]
[1721760687997,0.770322,66022.0,66021.0,0.00118233]
[1721760688425,0.757322,66022.0,66021.0,0.00018233]
[1721760688543,1.060251,66022.0,66021.0,0.00018233]
[1721760688748,0.768322,66022.0,66021.0,0.00118233]
[1721760689364,1.071251,66022.0,66021.0,0.00118233]
[1721760689791,0.768322,66022.0,66021.0,0.00118233]
[1721760690206,0.757322,66022.0,66021.0,0.00018233]
[1721760690407,1.073251,66022.0,66021.0,0.00018233]
[1721760691012,1.060251,66022.0,66021.0,0.00018233]
[1721760691644,1.20727091,66022.0,66021.0,0.00018233]
[1721760691841,1.21827091,66022.0,66021.0,0.00018233]
[1721760692602,1.26827091,66022.0,66021.0,0.00018233]
[1721760693016,1.91005001,66022.0,66021.0,0.00018233]
[1721760693193,2.06975001,66022.0,66021.0,0.00018233]
[1721760693403,2.05875001,66022.0,66021.0,0.00018233]
[1721760693631,2.06975001,66022.0,66021.0,0.00018233]
[1721760693987,1.92278736,66022.0,66021.0,0.00018233]
[1721760694165,1.91178736,66022.0,66021.0,0.00018233]
[1721760694581,1.92578736,66022.0,66021.0,0.00018233]
[1721760694791,1.83065786,66022.0,66021.0,0.00018233]
[1721760694995,1.62419991,66022.0,66021.0,0.00018233]
[1721760695191,1.67095786,66022.0,66021.0,0.00018233]
[1721760695403,1.67095786,66022.0,66021.0,0.00118233]
[1721760695897,1.681877,66022.0,66021.0,0.00118233]
[1721760697740,1.63511905,66022.0,66021.0,0.00118233]
[1721760698077,1.18517014,66022.0,66021.0,0.00118233]
[1721760698289,1.378948,66022.0,66021.0,0.00118233]
[1721760698906,1.52591065,66022.0,66021.0,0.00118233]
[1721760699107,1.7770065,66022.0,66021.0,0.00118233]
[1721760699303,2.0791065,66022.0,66021.0,0.00118233]
[1721760699527,2.3820355,66022.0,66021.0,0.00118233]
[1721760699681,2.53354031,66022.0,66021.0,0.00118233]
[1721760700001,2.5335729,66022.0,66021.0,0.00118233]
[1721760700247,2.59004013,66022.0,66021.0,0.00118233]
[1721760700653,2.66627982,66022.0,66021.0,0.00118233]
[1721760701002,2.68027982,66022.0,66021.0,0.00118233]
[1721760701204,2.58979328,66022.0,66021.0,0.00118233]
[1721760701406,2.58979328,66022.0,66021.0,0.00111626]
[1721760701809,3.28979328,66022.0,66021.0,0.00111626]
[1721760702210,3.28979328,66022.0,66021.0,0.00011626]
[1721760702380,3.3862426,66022.0,66021.0,0.00111626]
[1721760702776,3.6891716,66022.0,66021.0,0.00111626]
[1721760703227,3.6891716,66022.0,66021.0,2.6e-07]
[1721760703550,2.10697145,66011.0,66010.0,0.000924]
[1721760703719,2.47229136,66011.0,66010.0,0.000924]
[1721760703921,2.57229136,66011.0,66010.0,0.000924]
[1721760704126,2.6283791,66011.0,66010.0,0.000924]
[1721760704286,2.5831613,66011.0,66010.0,0.000924]
[1721760704488,2.66514274,66011.0,66010.0,0.000924]
[1721760706397,2.67914274,66011.0,66010.0,0.001924]
[1721760706602,2.67914274,66011.0,65992.0,0.1421]
[1721760706603,2.27100945,66009.0,65992.0,0.1421]
[1721760706850,2.56499201,66009.0,65992.0,0.0786]
[1721760706982,2.67574357,66009.0,65988.0,0.0621]
[1721760707203,2.73677132,66009.0,65988.0,0.0621]
[1721760707403,3.61472249,66009.0,65988.0,0.0621]
[1721760708034,3.62872249,66009.0,65988.0,0.0621]
[1721760708378,2.79872249,66009.0,65988.0,0.0621]
[1721760708572,3.51872249,66009.0,65988.0,0.0621]
[1721760708870,3.53272249,66009.0,66008.0,0.001001]
[1721760709059,2.81272249,66009.0,66008.0,0.001001]
[1721760709265,0.04675795,65992.0,65988.0,0.0621]
[1721760709477,1.87100836,65992.0,65981.0,0.064]
[1721760709709,1.88161499,65992.0,65981.0,0.064]
[1721760710123,1.98161499,65992.0,65981.0,0.064]
[1721760710321,2.74744899,65992.0,65991.0,1e-06]
[1721760710521,2.82943043,65992.0,65991.0,1e-06]
[1721760710696,2.84343043,65992.0,65991.0,1e-06]
[1721760711121,2.82943043,65992.0,65991.0,1e-06]
[1721760711854,2.84343043,65992.0,65991.0,1e-06]
[1721760712076,2.82943043,65992.0,65991.0,1e-06]
[1721760712309,2.84343043,65992.0,65991.0,1e-06]
[1721760712521,2.86643043,65992.0,65991.0,1e-06]
[1721760712699,2.88043043,65992.0,65991.0,1e-06]
[1721760712876,2.89443043,65992.0,65991.0,1e-06]
[1721760713073,2.89424821,65992.0,65991.0,1e-06]
[1721760713287,2.88024821,65992.0,65991.0,1e-06]
[1721760713644,2.89424821,65992.0,65991.0,1e-06]
[1721760714050,2.88024821,65992.0,65991.0,1e-06]
[1721760714328,2.89424821,65992.0,65991.0,1e-06]
[1721760714518,0.29327023,65978.0,65977.0,0.009372]
[1721760714734,1.78214116,65978.0,65977.0,0.009372]
[1721760714926,1.76333758,65978.0,65977.0,0.009372]
[1721760715357,2.22616858,65978.0,65977.0,0.009372]
[1721760716393,2.24016858,65978.0,65977.0,0.009372]
[1721760716811,2.25416858,65978.0,65977.0,0.009372]
[1721760717272,2.24016858,65978.0,65977.0,0.009372]
[1721760717458,2.38713123,65978.0,65977.0,0.009372]
[1721760717917,1.84190808,65978.0,65977.0,0.009372]
[1721760718135,1.85590808,65978.0,65977.0,0.009372]
[1721760718358,1.84190808,65978.0,65977.0,0.009372]
[1721760719015,1.37907708,65978.0,65977.0,0.085772]
[1721760719262,1.38825617,65978.0,65977.0,0.085772]
[1721760719690,1.69138717,65978.0,65977.0,0.085772]
[1721760720121,1.70538717,65978.0,65977.0,0.085772]
[1721760720570,1.83834982,65978.0,65977.0,0.085772]
[1721760720787,1.83834982,65978.0,65977.0,0.009372]
[1721760720788,2.41031032,65978.0,65977.0,0.009372]
[1721760721007,2.46081032,65978.0,65977.0,0.009372]
[1721760721229,1.85234982,65978.0,65977.0,0.009372]
[1721760721439,1.94747932,65978.0,65977.0,0.009372]
[1721760722091,1.93347932,65978.0,65977.0,0.009372]
[1721760722569,2.49261032,65978.0,65977.0,0.009372]
[1721760722783,2.50661032,65978.0,65977.0,0.009372]
[1721760722995,1.96877423,65972.0,65971.0,0.002]
[1721760723206,2.40758356,65972.0,65971.0,0.002]
[1721760723410,2.41795042,65972.0,65971.0,0.002]
[1721760723614,2.51795042,65972.0,65971.0,0.002]
[1721760724741,2.444461,65972.0,65971.0,0.002]
[1721760725175,2.14215494,65972.0,65971.0,0.002]
[1721760725734,2.0601735,65972.0,65971.0,0.002]
[1721760726172,2.0741735,65972.0,65971.0,0.002]
[1721760726385,2.169303,65972.0,65971.0,0.002]
[1721760727695,2.472461,65972.0,65971.0,0.002]
[1721760729556,1.96895523,65965.0,65964.0,0.009372]
[1721760729760,2.57487514,65965.0,65964.0,0.009372]
[1721760729965,2.58512099,65965.0,65964.0,0.009372]
[1721760730192,2.14132999,65965.0,65964.0,0.009372]
[1721760730786,2.15532999,65965.0,65964.0,0.009372]
[1721760730996,1.68220049,65965.0,65964.0,0.009372]
[1721760731292,1.68220049,65965.0,65964.0,0.154972]
[1721760731293,1.34643376,65965.0,65964.0,0.154972]
[1721760734183,0.18984085,65965.0,65964.0,0.154972]
[1721760734741,0.03824585,65965.0,65964.0,0.16326677]
[1721760735161,0.03824585,65965.0,65964.0,0.31486377]
[1721760735362,0.03824585,65965.0,65964.0,0.16326677]
[1721760735563,0.49303185,65965.0,65964.0,0.11326677]
[1721760735768,0.47903185,65965.0,65964.0,0.11326677]
[1721760735984,0.16184085,65965.0,65964.0,0.11326677]
[1721760736137,0.17484085,65965.0,65964.0,0.11326677]
[1721760736361,0.17484085,65965.0,65964.0,0.23914452]
[1721760736712,0.02324585,65965.0,65964.0,0.23914452]
[1721760736919,0.01024585,65965.0,65964.0,0.23914452]
[1721760737112,0.01024585,65965.0,65964.0,0.39074152]
[1721760737113,0.02424585,65965.0,65964.0,0.39074152]
[1721760737320,0.01724585,65965.0,65964.0,0.23914452]
[1721760737496,0.01724585,65965.0,65964.0,0.24114452]
[1721760737932,0.01724585,65965.0,65964.0,0.11526677]
[1721760737933,0.47203185,65965.0,65964.0,0.11526677]
[1721760738122,0.47203185,65965.0,65964.0,0.24206591]
[1721760738338,0.77522285,65965.0,65964.0,0.24206591]
[1721760738517,0.77522285,65965.0,65964.0,0.11132027]
[1721760738691,0.77522285,65965.0,65964.0,0.11619077]
[1721760739074,0.77522285,65965.0,65964.0,0.24207321]
[1721760740032,0.76822285,65965.0,65964.0,0.24207321]
[1721760740222,0.77722285,65965.0,65964.0,0.24207321]
[1721760740561,0.77722285,65965.0,65964.0,0.24007321]
[1721760740763,0.47403185,65965.0,65964.0,0.24007321]
[1721760740964,0.47403185,65965.0,65964.0,0.2400699]
[1721760740965,0.47503185,65965.0,65964.0,0.2400699]
[1721760741568,0.77822285,65965.0,65964.0,0.2400699]
[1721760745393,1.33658455,65965.0,65964.0,0.105896]
[1721760745806,1.22843376,65965.0,65964.0,0.000924]
[1721760746443,0.92524276,65965.0,65964.0,0.000924]
[1721760746863,1.22843376,65965.0,65964.0,0.000924]
[1721760747709,0.92524276,65965.0,65964.0,0.12681091]
[1721760748282,0.77822285,65965.0,65964.0,0.13510568]
[1721760748695,0.47503185,65965.0,65964.0,0.13510568]
[1721760748911,0.02024585,65965.0,65964.0,0.13510568]
[1721760749113,0.17184085,65965.0,65964.0,0.13510568]
[1721760749322,0.02024585,65965.0,65964.0,0.13510568]
[1721760750378,0.17184085,65965.0,65964.0,0.13510568]
[1721760750569,0.17184085,65965.0,65964.0,0.13509891]
[1721760750570,0.02024585,65965.0,65964.0,0.13509891]
[1721760751543,0.47503185,65965.0,65964.0,0.13509891]
[1721760751744,0.17184085,65965.0,65964.0,0.13509891]
[1721760753204,0.92524276,65965.0,65964.0,0.12680414]
[1721760753402,0.62205176,65965.0,65964.0,0.12680414]
[1721760753660,0.62205176,65965.0,65964.0,0.12680814]
[1721760753868,0.02024585,65965.0,65964.0,0.13510291]
[1721760754069,0.02024585,65965.0,65964.0,0.13023241]
[1721760754290,0.02024585,65965.0,65964.0,0.13510291]
[1721760754496,0.02024585,65965.0,65964.0,0.28669991]
[1721760754995,0.02024585,65965.0,65964.0,0.72769491]
[1721760755129,0.02024585,65965.0,65964.0,0.42449991]
[1721760755301,0.17184085,65965.0,65964.0,0.27290291]
[1721760755510,0.47503185,65965.0,65964.0,0.27290291]
[1721760756091,0.17184085,65965.0,65964.0,0.27290291]
[1721760756722,0.17184085,65965.0,65964.0,0.14701877]
[1721760756930,0.17184085,65965.0,65964.0,0.27290108]
[1721760757129,0.17184085,65965.0,65964.0,0.14701877]
[1721760757288,0.17184085,65965.0,65964.0,0.27289908]
[1721760757712,0.47503185,65965.0,65964.0,0.27289908]
[1721760758320,0.77822285,65965.0,65964.0,0.27289908]
[1721760758517,0.77822285,65965.0,65964.0,0.19689908]
[1721760759124,0.79772285,65965.0,65964.0,0.19689908]
[1721760759496,0.79772285,65965.0,65964.0,0.13509908]
[1721760760001,0.79772285,65965.0,65964.0,0.13510359]
[1721760762556,0.79772285,65965.0,65964.0,0.13500359]
[1721760763227,0.79772285,65965.0,65964.0,0.135001]
[1721760765000,0.79772285,65965.0,65964.0,0.12670623]
[1721760765225,0.79772285,65965.0,65964.0,0.00424827]
[1721760765422,0.79772285,65965.0,65964.0,0.13013359]
[1721760765704,0.79772285,65965.0,65964.0,0.13500409]
[1721760766107,0.79772285,65965.0,65964.0,0.12670932]
[1721760766108,1.42390094,65965.0,65964.0,0.12670932]
[1721760766397,1.31608227,65965.0,65964.0,0.12671556]
[1721760766789,1.24793376,65965.0,65964.0,0.12671556]
[1721760766993,1.29450949,65965.0,65964.0,0.000824]
[1721760767196,1.89992432,65965.0,65964.0,0.000824]
[1721760767411,1.80906314,65965.0,65964.0,0.000824]
[1721760767609,1.89991838,65965.0,65964.0,0.000824]
[1721760768036,1.80906314,65965.0,65964.0,0.000824]
[1721760768354,1.66210049,65965.0,65964.0,0.000824]
[1721760768556,1.73024316,65965.0,65964.0,0.000824]
[1721760769188,1.66210049,65965.0,65964.0,0.12671423]
[1721760769397,1.66210049,65965.0,65964.0,0.000824]
[1721760769629,1.73024467,65965.0,65964.0,0.000824]
[1721760770021,1.36265367,65965.0,65964.0,0.000824]
[1721760770226,1.33994006,65965.0,65964.0,0.12671223]
[1721760770505,1.33994006,65965.0,65964.0,0.000824]
[1721760770506,1.36349367,65965.0,65964.0,0.000824]
[1721760770750,1.36349367,65965.0,65964.0,0.12671296]
[1721760770751,1.44231214,65965.0,65964.0,0.12671296]
[1721760770924,1.3862084,65965.0,65964.0,0.000824]
[1721760771271,1.29534949,65965.0,65964.0,0.000824]
[1721760771450,1.29534949,65965.0,65964.0,0.126714]
[1721760771661,1.34078443,65965.0,65964.0,0.126714]
[1721760772339,1.36349707,65965.0,65964.0,0.126714]
[1721760772495,1.36349707,65965.0,65964.0,0.000824]
[1721760772672,1.84563711,65965.0,65964.0,0.000824]
[1721760773085,1.94563711,65965.0,65964.0,0.000824]
[1721760773653,1.85474414,65965.0,65964.0,0.000824]
[1721760774047,1.94564641,65965.0,65964.0,0.000824]
[1721760774323,1.85474414,65965.0,65964.0,0.000824]
[1721760774528,1.82140735,65965.0,65964.0,0.000824]
[1721760775065,1.70778149,65965.0,65964.0,0.000824]
[1721760775271,1.79868493,65965.0,65964.0,0.000824]
[1721760775930,1.7986904,65965.0,65964.0,0.000824]
[1721760776133,1.4954994,65965.0,65964.0,0.000824]
[1721760776564,1.40459049,65965.0,65964.0,0.000824]
[1721760777317,1.55155314,65965.0,65964.0,0.000824]
[1721760777729,1.66521531,65965.0,65964.0,0.000824]
[1721760778331,1.40459049,65965.0,65964.0,0.000824]
[1721760779785,1.51825315,65965.0,65964.0,0.000824]
[1721760780355,1.40459049,65965.0,65964.0,0.000824]
[1721760780765,0.28760576,65965.0,65964.0,0.00911877]
[1721760780958,0.64239176,65965.0,65964.0,0.13500826]
[1721760781161,0.68785618,65965.0,65964.0,0.13500826]
[1721760781325,0.64239176,65965.0,65964.0,0.12671349]
[1721760781521,0.64239176,65965.0,65964.0,0.000824]
[1721760781522,1.03710145,65965.0,65964.0,0.000824]
[1721760781722,1.12803539,65965.0,65964.0,0.000824]
[1721760781978,1.24877376,65965.0,65964.0,0.000824]
[1721760782631,1.33971123,65965.0,65964.0,0.000824]
[1721760782783,1.29534949,65965.0,65964.0,0.000824]
[1721760782985,1.39534949,65965.0,65964.0,0.000824]
[1721760783722,1.38534949,65965.0,65964.0,0.000824]
[1721760783874,1.68854049,65965.0,65964.0,0.000824]
[1721760784249,2.01873149,65965.0,65964.0,0.000824]
[1721760784461,1.86234049,65965.0,65964.0,0.000824]
[1721760784627,1.91234049,65965.0,65964.0,0.000824]
[1721760784845,1.89934049,65965.0,65964.0,0.000824]
[1721760785297,1.94446999,65965.0,65964.0,0.000824]
[1721760785697,2.09143264,65965.0,65964.0,0.000824]
[1721760785822,2.07743264,65965.0,65964.0,0.000824]
[1721760786231,2.09143264,65965.0,65964.0,0.000824]
[1721760786669,2.07743264,65965.0,65964.0,0.000824]
[1721760787046,2.09143264,65965.0,65964.0,0.000824]
[1721760787239,2.39462364,65965.0,65964.0,0.000824]
[1721760787439,2.10243264,65965.0,65964.0,0.000824]
[1721760787848,2.56532364,65965.0,65964.0,0.000824]
[1721760788049,2.63978245,65965.0,65964.0,0.000824]
[1721760788412,2.62869961,65965.0,65964.0,0.000824]
[1721760788576,2.61469961,65965.0,65964.0,0.000824]
[1721760788757,2.62869961,65965.0,65964.0,0.000824]
[1721760790327,2.64269961,65965.0,65964.0,0.000824]
[1721760791192,2.59056956,65965.0,65964.0,0.000824]
[1721760791389,2.6519412,65965.0,65964.0,0.000824]
[1721760791684,2.6249412,65965.0,65964.0,0.000824]
[1721760792242,2.9281322,65965.0,65964.0,1e-06]
[1721760792442,2.9371322,65965.0,65964.0,1e-06]
[1721760792707,2.49950951,65965.0,65964.0,1e-06]
[1721760792918,2.47797855,65965.0,65964.0,1e-06]
[1721760793117,2.49197855,65965.0,65964.0,1e-06]
[1721760793346,2.46397855,65965.0,65964.0,1e-06]
[1721760793629,2.49197855,65965.0,65964.0,1e-06]
[1721760793834,2.6389412,65965.0,65964.0,1e-06]
[1721760794041,2.6479412,65965.0,65964.0,1e-06]
[1721760794249,2.58656956,65965.0,65964.0,1e-06]
[1721760794402,2.64776111,65965.0,65964.0,1e-06]
[1721760794597,2.66176111,65965.0,65964.0,1e-06]
[1721760794824,2.64776111,65965.0,65964.0,1e-06]
[1721760795074,2.63376111,65965.0,65964.0,1e-06]
[1721760795371,2.95095211,65965.0,65964.0,1e-06]
[1721760795513,2.64776111,65965.0,65964.0,1e-06]
[1721760795722,2.63376111,65965.0,65964.0,1e-06]
[1721760796146,2.64776111,65965.0,65964.0,1e-06]
[1721760797039,2.66176111,65965.0,65964.0,1e-06]
[1721760797172,2.66181304,65965.0,65964.0,1e-06]
[1721760797375,2.60056956,65965.0,65964.0,1e-06]
[1721760797580,2.66206916,65965.0,65964.0,1e-06]
[1721760798209,2.74956916,65965.0,65964.0,1e-06]
[1721760800498,2.68806956,65965.0,65964.0,1e-06]
[1721760800701,2.74991136,65965.0,65964.0,1e-06]
[1721760800909,3.53991136,65965.0,65964.0,1e-06]
[1721760801123,3.77310236,65965.0,65964.0,1e-06]
[1721760801328,3.74310236,65965.0,65964.0,1e-06]
[1721760801732,2.74991136,65965.0,65964.0,1e-06]
[1721760802287,1.41114173,65955.0,65954.0,0.008994]
[1721760802489,1.84079114,65955.0,65954.0,0.008994]
[1721760802692,1.85094308,65955.0,65954.0,0.008994]
[1721760802893,1.75581358,65955.0,65954.0,0.008994]
[1721760803478,1.76981358,65955.0,65954.0,0.008994]
[1721760804292,1.78281358,65955.0,65954.0,0.008994]
[1721760804765,1.85086167,65955.0,65954.0,0.008994]
[1721760804933,1.78281358,65955.0,65954.0,0.008994]
[1721760805467,1.98456602,65955.0,65954.0,0.008994]
[1721760806029,1.76334092,65955.0,65954.0,0.008994]
[1721760806255,1.85084092,65955.0,65954.0,0.008994]
[1721760806465,1.78281358,65955.0,65954.0,0.008994]
[1721760806899,1.85082161,65955.0,65954.0,0.008994]
[1721760807106,1.78281358,65955.0,65954.0,0.008994]
[1721760807585,1.99779804,65955.0,65954.0,0.008994]
[1721760807786,1.99779804,65955.0,65954.0,0.071894]
[1721760808327,1.92977623,65955.0,65954.0,0.071894]
[1721760808535,1.39085302,65955.0,65954.0,0.071894]
[1721760808764,1.39085302,65955.0,65954.0,0.1524645]
[1721760808765,1.04226385,65955.0,65954.0,0.1524645]
[1721760808974,0.49200694,65955.0,65954.0,0.15588877]
[1721760809399,0.78124394,65955.0,65954.0,0.15588877]
[1721760809749,0.18676994,65955.0,65954.0,0.28178981]
[1721760809988,0.18676994,65955.0,65954.0,0.15588877]
[1721760810121,0.18676994,65955.0,65954.0,0.28178868]
[1721760810759,0.49000694,65955.0,65954.0,0.28178868]
[1721760810933,0.49400694,65955.0,65954.0,0.28178868]
[1721760811117,0.79724394,65955.0,65954.0,0.28178868]
[1721760811317,1.24750085,65955.0,65954.0,0.147594]
[1721760817915,1.24750085,65955.0,65954.0,0.27349452]
[1721760818051,0.03915194,65955.0,65954.0,0.28178929]
[1721760818253,0.03915194,65955.0,65954.0,0.43340929]
[1721760818479,0.029,65955.0,65954.0,0.43340929]
[1721760818684,0.029,65955.0,65954.0,0.73665029]
[1721760818685,0.03917936,65955.0,65954.0,0.73665029]
[1721760818842,0.03917936,65955.0,65954.0,1.34313229]
[1721760819035,0.017,65955.0,65954.0,1.34313229]
[1721760819463,0.019,65955.0,65954.0,1.34131079]
[1721760820341,0.002,65955.0,65954.0,1.49384157]
[1721760820525,0.003,65955.0,65954.0,1.34331079]
[1721760820677,0.003,65955.0,65954.0,1.48284187]
[1721760820880,0.02034,65965.0,65964.0,0.00342427]
[1721760821094,0.02034,65965.0,65964.0,0.13237379]
[1721760821496,0.02034,65965.0,65964.0,0.43337079]
[1721760821877,0.02034,65965.0,65964.0,0.28177379]
[1721760822274,0.02034,65965.0,65964.0,0.43337079]
[1721760822527,0.02034,65965.0,65964.0,0.28177379]
[1721760822741,0.02034,65965.0,65964.0,0.28221428]
[1721760822938,0.02034,65965.0,65964.0,0.28521428]
[1721760824074,0.171935,65965.0,65964.0,0.28521428]
[1721760824275,0.80378253,65965.0,65964.0,0.12751951]
[1721760824487,1.30201733,65965.0,65964.0,0.003]
[1721760824913,1.30701733,65965.0,65964.0,0.003]
[1721760825779,1.23352791,65965.0,65964.0,0.003]
[1721760826052,1.23352791,65965.0,65964.0,0.01129477]
[1721760826053,0.783317,65965.0,65964.0,0.01129477]
[1721760826618,0.783317,65965.0,65964.0,0.13560536]
[1721760826619,0.490126,65965.0,65964.0,0.13560536]
[1721760826814,0.490126,65965.0,65964.0,0.13560387]
[1721760827238,0.03534,65965.0,65964.0,0.28290387]
[1721760827437,0.186935,65965.0,65964.0,0.28290387]
[1721760828183,0.490126,65965.0,65964.0,0.28290387]
[1721760829069,0.186935,65965.0,65964.0,0.28316109]
[1721760829300,0.490126,65965.0,65964.0,0.28316109]
[1721760829544,0.03534,65965.0,65964.0,0.28316109]
[1721760829779,0.03534,65965.0,65964.0,0.43475809]
[1721760830508,0.03534,65965.0,65964.0,0.28316109]
[1721760830740,0.186935,65965.0,65964.0,0.28316109]
[1721760830939,0.1973031,65965.0,65964.0,0.28316109]